bitfinex/quotes_SOLUSD_20260119
["timestamp","ask_amount","ask_price","bid_price","bid_amount"]
[1768785903905,7.47070859,133.86,133.83,4.43012067]
[1768785904108,11.83470364,133.86,133.83,4.43012067]
[1768785904325,4.36399505,133.88,133.83,4.43012067]
[1768785904522,4.56399505,133.9,133.87,6.89707878]
[1768785905149,4.56399505,133.9,133.87,6.88569771]
[1768785905843,4.56399505,133.9,133.87,6.85569771]
[1768785906946,12.03246252,133.9,133.86,11.90028868]
[1768785907116,12.03246252,133.9,133.86,4.43012067]
[1768785908134,12.03246252,133.9,133.86,18.78630129]
[1768785908340,4.36399505,133.89,133.86,11.31581838]
[1768785909226,0.2,133.9,133.87,11.31581838]
[1768785909534,4.56399505,133.9,133.87,4.43012067]
[1768785909832,4.56399505,133.9,133.86,18.78625561]
[1768785911316,4.56399505,133.9,133.81,7.47306444]
[1768785911317,4.36399505,133.87,133.81,7.47306444]
[1768785911537,6.88569771,133.84,133.79,11.31581838]
[1768785911751,6.88569771,133.85,133.8,7.47380454]
[1768785912143,6.88569771,133.85,133.8,11.90392521]
[1768785912337,6.88569771,133.85,133.8,4.43012067]
[1768785912543,6.88569771,133.83,133.78,4.43012067]
[1768785912859,16.36,133.88,133.78,18.79076596]
[1768785913154,7.47328301,133.81,133.77,4.43012067]
[1768785913329,7.47328301,133.81,133.76,18.79152256]
[1768785913646,11.83727806,133.81,133.77,6.88569771]
[1768785913848,4.36399505,133.8,133.76,11.90582485]
[1768785914046,4.36399505,133.8,133.77,6.88569771]
[1768785914654,4.36399505,133.81,133.77,18.79095999]
[1768785916259,18.68068082,133.83,133.78,11.31581838]
[1768785916260,18.72198788,133.83,133.78,11.31581838]
[1768785916461,4.36399505,133.82,133.78,11.31581838]
[1768785916861,4.36399505,133.82,133.78,6.88569771]
[1768785917047,4.36399505,133.82,133.78,11.31581838]
[1768785917862,4.36399505,133.82,133.78,18.79053728]
[1768785919163,4.36399505,133.82,133.78,11.90483957]
[1768785919459,4.36399505,133.82,133.78,18.79053728]
[1768785919958,4.36399505,133.81,133.76,18.79177471]
[1768785920761,4.36399505,133.81,133.77,4.43012067]
[1768785921842,4.36399505,133.81,133.77,11.90562373]
[1768785922047,11.83740174,133.81,133.77,11.90562373]
[1768785923163,4.15655026,133.8,133.77,7.47550306]
[1768785924371,4.15655026,133.8,133.76,11.5998206]
[1768785924958,4.15655026,133.8,133.76,18.48551831]
[1768785925268,57.5844771,133.83,133.79,4.12398226]
[1768785926765,4.15655026,133.82,133.79,4.12398226]
[1768785928661,4.15655026,133.87,133.82,4.12398226]
[1768785928837,4.15655026,133.86,133.83,6.88569771]
[1768785929641,4.15655026,133.86,133.82,18.48238056]
[1768785929957,30.30184704,133.87,133.82,4.12398226]
[1768785930140,33.03099449,133.87,133.82,4.12398226]
[1768785930340,4.15655026,133.86,133.82,4.12398226]
[1768785930762,11.62723637,133.86,133.82,4.12398226]
[1768785931363,11.82500056,133.9,133.86,4.12398226]
[1768785931553,4.35655026,133.9,133.86,4.12398226]
[1768785931864,4.35655026,133.9,133.87,6.88569771]
[1768785932751,4.35655026,133.9,133.87,14.35560843]
[1768785932953,0.2,133.9,133.87,18.47959069]
[1768785933153,0.2,133.9,133.87,18.4495907]
[1768785933342,11.82487791,133.9,133.86,4.12398226]
[1768785933548,11.82487791,133.9,133.86,11.00967997]
[1768785934261,4.35655026,133.9,133.87,7.46992644]
[1768785934465,0.2,133.9,133.87,18.47960641]
[1768785934659,0.2,133.9,133.88,11.00967997]
[1768785934964,16.36,133.92,133.89,11.00967997]
[1768785935169,16.36,133.92,133.89,4.12398226]
[1768785935762,11.62333798,133.93,133.89,11.00967997]
[1768785936145,11.62333798,133.93,133.89,18.47838242]
[1768785936342,41.91027847,133.95,133.9,4.12398226]
[1768785936343,20.51655026,133.95,133.9,4.12398226]
[1768785936542,20.51655026,133.95,133.9,11.00967997]
[1768785936744,4.15655026,133.94,133.9,4.12398226]
[1768785936970,4.15655026,133.94,133.9,18.47791509]
[1768785937368,11.62258138,133.94,133.9,11.00967997]
[1768785938952,11.62258138,133.94,133.9,4.12398226]
[1768785939348,4.29395707,133.93,133.89,6.88569771]
[1768785939549,4.29395707,133.93,133.88,10.9974305]
[1768785939963,4.29395707,133.93,133.89,4.11173279]
[1768785940164,4.29395707,133.93,133.9,4.11173279]
[1768785940972,4.29395707,133.93,133.86,7.47049155]
[1768785941159,4.29395707,133.9,133.87,6.88569771]
[1768785941366,4.29395707,133.91,133.87,10.9974305]
[1768785941572,11.76170111,133.91,133.87,10.9974305]
[1768785942372,11.76170111,133.91,133.87,4.11173279]
[1768785942570,11.76170111,133.91,133.87,10.9974305]
[1768785943372,4.29395707,133.92,133.89,4.11173279]
[1768785943562,4.29395707,133.92,133.88,10.9974305]
[1768785944179,4.29395707,133.92,133.88,4.11173279]
[1768785944380,4.29395707,133.92,133.88,10.9974305]
[1768785945457,11.76145428,133.92,133.88,10.9974305]
[1768785946980,4.29395707,133.91,133.86,10.9974305]
[1768785947653,4.29395707,133.91,133.87,10.9974305]
[1768785947861,4.29395707,133.91,133.86,10.9974305]
[1768785948165,4.29395707,133.91,133.86,6.88569771]
[1768785948360,4.29395707,133.91,133.84,7.4714993]
[1768785948361,4.29395707,133.89,133.84,10.9974305]
[1768785948885,11.76389058,133.87,133.83,7.11256637]
[1768785949082,11.76389058,133.87,133.83,4.11173279]
[1768785949259,7.46993351,133.87,133.83,3.00083358]
[1768785949582,11.76165925,133.91,133.83,28.72867499]
[1768785949760,4.29395707,133.9,133.86,3.00083358]
[1768785949961,4.29395707,133.9,133.83,28.72867499]
[1768785950160,4.29395707,133.88,133.83,3.00083358]
[1768785951066,11.76382351,133.88,133.84,3.00083358]
[1768785951576,4.29395707,133.87,133.83,3.00083358]
[1768785951783,4.29395707,133.87,133.83,6.28389619]
[1768785952182,4.29395707,133.87,133.83,3.28306261]
[1768785952379,4.29395707,133.87,133.83,6.28389619]
[1768785953182,7.47049155,133.86,133.83,6.28389619]
[1768785953575,7.47049155,133.86,133.83,3.28306261]
[1768785953781,11.76407127,133.87,133.83,6.28389619]
[1768785955494,26.14281446,133.88,133.84,3.28306261]
[1768785955785,30.31403188,133.88,133.84,3.28306261]
[1768785956372,4.17121742,133.87,133.83,6.28389619]
[1768785956584,7.47049155,133.86,133.83,6.28389619]
[1768785957291,50.12648852,133.89,133.83,10.47285871]
[1768785957474,4.17121742,133.88,133.83,10.47285871]
[1768785958490,11.64059298,133.88,133.83,10.47285871]
[1768785960213,11.64059298,133.88,133.83,3.00083358]
[1768785960594,4.17121742,133.87,133.83,3.00083358]
[1768785960785,4.17121742,133.87,133.82,3.00083358]
[1768785962097,11.64170897,133.86,133.81,7.47304853]
[1768785962395,4.17121742,133.85,133.8,23.81383548]
[1768785962593,4.17121742,133.85,133.8,19.34083358]
[1768785962982,4.17121742,133.85,133.8,26.81466158]
[1768785963483,4.17121742,133.85,133.8,10.47466158]
[1768785963682,29.14755402,133.86,133.78,10.47534404]
[1768785963683,4.17121742,133.83,133.78,10.47534404]
[1768785963881,4.17121742,133.83,133.78,7.47451046]
[1768785964092,4.17121742,133.83,133.78,10.47534404]
[1768785964093,11.64354697,133.83,133.78,10.47534404]
[1768785964480,4.17121742,133.84,133.79,3.00083358]
[1768785964681,4.17121742,133.84,133.8,3.00083358]
[1768785964979,7.47099923,133.86,133.83,3.00083358]
[1768785965183,11.64127036,133.87,133.83,3.00083358]
[1768785965809,4.17121742,133.87,133.84,3.00083358]
[1768785966107,28.00019605,133.89,133.79,16.34]
[1768785966295,11.64019605,133.89,133.85,3.00083358]
[1768785966694,4.17121742,133.88,133.83,3.00083358]
[1768785967000,4.17121742,133.88,133.81,16.34]
[1768785967186,4.17121742,133.88,133.83,3.00090622]
[1768785967387,4.17121742,133.87,133.82,3.00090622]
[1768785967789,11.64170897,133.86,133.82,3.00090622]
[1768785968006,11.64170897,133.86,133.82,10.47351389]
[1768785968509,4.17121742,133.86,133.83,3.00090622]
[1768785969109,4.17121742,133.86,133.82,10.47351389]
[1768785969799,4.17121742,133.85,133.8,27.1111208]
[1768785970003,4.17121742,133.85,133.81,3.00090622]
[1768785970704,11.64180531,133.86,133.82,3.00090622]
[1768785970902,4.17121742,133.85,133.81,3.00090622]
[1768785971206,4.17121742,133.85,133.8,19.34090622]
[1768785971412,4.17121742,133.85,133.8,16.34]
[1768785971705,4.17121742,133.85,133.81,3.00090622]
[1768785971904,4.17121742,133.84,133.8,19.34090622]
[1768785972205,7.47143091,133.85,133.76,18.24680364]
[1768785972206,4.17121742,133.83,133.76,18.24680364]
[1768785972402,4.17121742,133.82,133.77,3.00090622]
[1768785972986,4.11121743,133.82,133.77,10.53642105]
[1768785974824,35.03991775,133.84,133.79,3.06090621]
[1768785975003,7.47118197,133.85,133.82,3.00090622]
[1768785975516,11.64239939,133.85,133.82,3.00090622]
[1768785976620,11.64239939,133.85,133.81,10.53418793]
[1768785976920,11.64239939,133.85,133.81,14.42483583]
[1768785977298,11.64239939,133.85,133.81,6.95155411]
[1768785977499,4.17121742,133.84,133.8,6.89155412]
[1768785977699,4.17121742,133.84,133.79,30.7656135]
[1768785978599,4.17121742,133.84,133.8,14.36530987]
[1768785978804,7.47118197,133.85,133.81,14.42472625]
[1768785978991,11.64239939,133.85,133.81,14.42472625]
[1768785979406,11.64239939,133.85,133.8,7.47366107]
[1768785979716,4.17121742,133.84,133.8,14.36521519]
[1768785980505,4.17121742,133.84,133.8,7.47366107]
[1768785980712,4.17121742,133.84,133.79,23.29155411]
[1768785981217,11.64313731,133.84,133.79,30.76562145]
[1768785981595,7.4711412,133.85,133.8,6.95155411]
[1768785981796,7.4711412,133.85,133.8,0.05999999]
[1768785981797,11.64235862,133.85,133.8,0.05999999]
[1768785981995,11.64235862,133.85,133.81,6.89155412]
[1768785982220,7.4711412,133.85,133.81,6.95155411]
[1768785982514,7.4711412,133.85,133.82,6.95155411]
[1768785982898,11.92925057,133.87,133.83,6.89155412]
[1768785983099,11.92925057,133.87,133.84,6.89155412]
[1768785983293,11.92925057,133.87,133.82,0.05999999]
[1768785983496,11.92925057,133.87,133.83,6.89155412]
[1768785984025,11.92925057,133.87,133.83,14.36358542]
[1768785984722,7.46959491,133.88,133.83,14.42358541]
[1768785985016,4.45900487,133.89,133.85,6.89155412]
[1768785985605,4.45900487,133.89,133.86,6.89155412]
[1768785987034,11.92689279,133.91,133.86,14.3618916]
[1768785987326,11.92689279,133.91,133.86,14.42189159]
[1768785987510,4.45900487,133.9,133.86,14.42189159]
[1768785987708,4.45900487,133.9,133.86,7.47033748]
[1768785987928,7.46788792,133.91,133.86,14.42189159]
[1768785988107,7.46788792,133.91,133.87,6.89155412]
[1768785988430,11.92689279,133.91,133.87,6.89155412]
[1768785988629,4.45900487,133.9,133.86,7.47033748]
[1768785988821,4.45900487,133.9,133.86,14.42189159]
[1768785990010,11.92614943,133.92,133.87,14.36144247]
[1768785990209,11.92614943,133.92,133.87,14.42144246]
[1768785990833,4.45900487,133.92,133.87,14.42144246]
[1768785991217,4.45900487,133.9,133.85,7.47084797]
[1768785991434,4.45900487,133.88,133.83,14.42362327]
[1768785991623,4.45900487,133.88,133.84,7.47136498]
[1768785992240,4.45900487,133.88,133.84,14.42291909]
[1768785993015,4.39900488,133.88,133.84,14.42291909]
[1768785993215,16.36,133.93,133.87,6.89155412]
[1768785993216,7.46831736,133.9,133.87,6.89155412]
[1768785994436,26.13381488,133.93,133.87,6.89155412]
[1768785994635,33.025369,133.93,133.87,6.89155412]
[1768785994832,6.89155412,133.92,133.86,7.47037369]
[1768785995030,6.89155412,133.92,133.86,14.36192781]
[1768785995031,4.45900487,133.91,133.86,14.36192781]
[1768785995228,4.45900487,133.91,133.87,7.46989142]
[1768785996443,11.92689752,133.91,133.87,7.46989142]
[1768785997318,4.45900487,133.89,133.84,0.11999998]
[1768785997547,4.45900487,133.89,133.84,3.11928682]
[1768785998621,4.1521804,133.88,133.83,2.99928684]
[1768785998929,4.1521804,133.88,133.82,10.47180226]
[1768785998930,4.1521804,133.87,133.82,10.47180226]
[1768786000014,4.1521804,133.87,133.82,7.47251542]
[1768786000436,4.1521804,133.87,133.82,10.47180226]
[1768786000643,11.62241063,133.87,133.82,10.47180226]
[1768786000944,4.1521804,133.82,133.76,0.11999998]
[1768786001242,4.09218039,133.82,133.78,7.47441559]
[1768786001434,4.09218039,133.82,133.78,10.47370243]
[1768786001820,4.09218039,133.82,133.78,7.47441559]
[1768786002139,4.09218039,133.82,133.79,7.47435806]
[1768786003140,4.09218039,133.82,133.79,10.4736449]
[1768786003332,4.1521804,133.85,133.8,0.17999999]
[1768786003533,4.1521804,133.85,133.8,3.17928683]
[1768786004526,11.62324367,133.85,133.8,10.65277831]
[1768786005037,4.1521804,133.84,133.8,10.65277831]
[1768786005623,4.1521804,133.9,133.84,0.17999999]
[1768786005821,4.1521804,133.9,133.86,2.99928684]
[1768786006747,4.1521804,133.9,133.87,2.99928684]
[1768786007047,4.1521804,133.9,133.87,6.88582034]
[1768786007249,4.1521804,133.9,133.86,6.88582034]
[1768786007724,4.1521804,133.89,133.86,6.88582034]
[1768786009249,4.1521804,133.89,133.85,14.35655355]
[1768786009744,4.1521804,133.88,133.84,6.88582034]
[1768786010128,4.1521804,133.88,133.84,14.3574246]
[1768786010747,4.1521804,133.9,133.87,6.88582034]
[1768786012851,4.1521804,133.9,133.86,14.35601708]
[1768786013348,4.40281549,133.89,133.83,0.17999999]
[1768786013531,4.40281549,133.89,133.86,6.88582034]
[1768786014047,4.40281549,133.89,133.84,0.17999999]
[1768786014250,4.40281549,133.89,133.85,6.88582034]
[1768786014550,4.40281549,133.89,133.86,6.88582034]
[1768786015450,4.40281549,133.89,133.85,7.47104968]
[1768786015641,4.40281549,133.89,133.86,6.88582034]
[1768786016651,4.40281549,133.89,133.85,14.35687002]
[1768786017362,4.40281549,133.89,133.86,6.88582034]
[1768786018156,4.40281549,133.89,133.85,7.47066664]
[1768786018455,4.40281549,133.89,133.85,14.35648698]
[1768786019859,4.40281549,133.88,133.84,14.35721059]
[1768786020463,4.40281549,133.85,133.8,0.17999999]
[1768786020753,4.40281549,133.85,133.81,14.35871029]
[1768786020951,4.40281549,133.87,133.82,6.88582034]
[1768786021252,4.40281549,133.87,133.8,18.6833984]
[1768786021447,4.40281549,133.86,133.81,14.35888795]
[1768786022042,4.40281549,133.85,133.81,14.35888795]
[1768786022560,4.40281549,133.85,133.81,7.47306761]
[1768786023161,4.40281549,133.85,133.81,14.35888795]
[1768786024458,4.40281549,133.86,133.82,7.06582033]
[1768786024877,4.40281549,133.87,133.83,6.88582034]
[1768786025172,4.40281549,133.9,133.86,6.88582034]
[1768786026358,4.40281549,133.9,133.86,14.35593138]
[1768786026561,16.36,133.93,133.88,7.06582033]
[1768786026562,4.40281549,133.93,133.88,7.06582033]
[1768786027059,4.40281549,133.93,133.88,7.06473406]
[1768786027444,4.40281549,133.92,133.88,14.53398375]
[1768786027867,4.40281549,133.9,133.84,14.35616934]
[1768786028057,4.40281549,133.88,133.82,7.06473406]
[1768786028259,4.40281549,133.87,133.82,7.06473406]
[1768786028956,4.40281549,133.87,133.82,6.88473407]
[1768786029362,4.40281549,133.87,133.82,14.35738018]
[1768786029556,11.87310685,133.87,133.82,14.35738018]
[1768786029755,4.40281549,133.86,133.82,14.35738018]
[1768786029951,4.34281548,133.86,133.82,14.35738018]
[1768786030670,4.34281548,133.86,133.82,14.59738018]
[1768786031168,14.35424605,133.88,133.82,14.59738018]
[1768786031767,6.88473407,133.86,133.81,23.81307762]
[1768786031964,4.40281549,133.85,133.81,23.81307762]
[1768786032473,4.40281549,133.84,133.8,7.47374553]
[1768786033162,4.40281549,133.83,133.79,7.71434146]
[1768786033366,4.40281549,133.83,133.79,7.47434146]
[1768786036047,11.28754956,133.83,133.79,7.47434146]
[1768786036252,11.87510614,133.83,133.79,7.47434146]
[1768786036469,4.40281549,133.82,133.79,7.47434146]
[1768786036677,4.40281549,133.8,133.75,7.71628037]
[1768786036996,6.88473407,133.79,133.74,16.64000008]
[1768786037275,49.39744017,133.83,133.77,7.77511368]
[1768786037493,6.88473407,133.82,133.77,7.4751136]
[1768786038272,49.39744017,133.83,133.77,7.4751136]
[1768786038475,23.83229065,133.83,133.78,14.35964817]
[1768786038772,23.83229065,133.83,133.78,7.4749141]
[1768786039068,4.40281549,133.82,133.78,7.4749141]
[1768786040863,4.40281549,133.82,133.78,14.35964817]
[1768786041173,4.40281549,133.85,133.8,0.30000008]
[1768786041363,4.40281549,133.85,133.79,0.30000008]
[1768786041564,4.40281549,133.85,133.81,6.88473407]
[1768786041765,4.40281549,133.85,133.8,6.88473407]
[1768786042273,11.87442338,133.84,133.8,6.88473407]
[1768786043477,4.40281549,133.84,133.8,14.35853425]
[1768786043662,4.40281549,133.84,133.81,6.88473407]
[1768786044575,4.30883952,133.86,133.83,6.88473407]
[1768786045383,4.30883952,133.86,133.83,14.35686415]
[1768786047087,4.30883952,133.87,133.83,14.35686415]
[1768786048862,4.30883952,133.87,133.83,10.4728525]
[1768786050890,16.36,133.89,133.84,3.3007225]
[1768786050891,20.66883952,133.89,133.84,3.3007225]
[1768786051065,4.30883952,133.89,133.86,3.00072242]
[1768786051391,4.30883952,133.89,133.85,3.00072242]
[1768786051392,11.77768028,133.89,133.85,3.00072242]
[1768786051584,4.30883952,133.88,133.85,3.00072242]
[1768786052370,4.30883952,133.88,133.85,10.47155777]
[1768786052881,4.30883952,133.87,133.82,7.47238086]
[1768786054271,4.30883952,133.87,133.82,3.00072242]
[1768786054476,4.30883952,133.87,133.82,3.3007225]
[1768786054884,11.77887237,133.87,133.82,10.77344705]
[1768786055364,4.30883952,133.86,133.82,10.77344705]
[1768786055566,4.30883952,133.86,133.82,10.47344697]
[1768786056986,4.30883952,133.86,133.83,3.00072242]
[1768786059292,4.36425823,133.85,133.8,3.00072242]
[1768786059485,4.30425822,133.85,133.8,10.4741985]
[1768786060764,4.30425822,133.85,133.81,7.47327967]
[1768786061176,4.24425823,133.85,133.81,10.47400209]
[1768786061486,4.24425823,133.85,133.82,3.00072242]
[1768786061781,4.18425824,133.85,133.82,3.00072242]
[1768786061988,7.4701058,133.87,133.82,3.00072242]
[1768786063186,7.4701058,133.87,133.83,7.47216618]
[1768786063577,7.4701058,133.87,133.82,7.4725247]
[1768786063784,4.36425823,133.86,133.82,10.47324712]
[1768786063980,4.36425823,133.9,133.85,3.48072249]
[1768786064175,4.36425823,133.9,133.86,3.00072242]
[1768786065189,4.36425823,133.89,133.86,3.00072242]
[1768786065385,4.36425823,133.89,133.85,10.47158256]
[1768786065780,4.36425823,133.89,133.84,3.00072242]
[1768786066395,7.36498065,133.88,133.82,18.68181138]
[1768786066584,4.36425823,133.87,133.83,7.47206757]
[1768786067801,4.36425823,133.86,133.81,3.00072242]
[1768786067976,4.30425824,133.86,133.8,3.00072242]
[1768786068482,4.30425824,133.86,133.81,10.47382814]
[1768786068996,4.30425824,133.86,133.81,14.36457746]
[1768786069587,7.47104968,133.85,133.81,14.36457746]
[1768786069894,4.36425823,133.84,133.81,14.36457746]
[1768786070193,4.30425824,133.84,133.81,14.36457746]
[1768786070392,18.67226738,133.89,133.83,6.89147174]
[1768786070597,18.67226738,133.89,133.84,6.89147174]
[1768786070800,18.67226738,133.89,133.83,6.89147174]
[1768786071298,25.56373912,133.89,133.83,6.89147174]
[1768786071591,7.46937556,133.88,133.83,14.36359956]
[1768786071984,4.36425823,133.87,133.83,14.36359956]
[1768786073694,4.21956949,133.86,133.8,0.60000005]
[1768786073878,4.21956949,133.86,133.82,6.89147174]
[1768786074383,4.21956949,133.86,133.83,14.36352298]
[1768786074592,4.21956949,133.86,133.83,7.47205124]
[1768786075595,4.21956949,133.86,133.8,6.89147174]
[1768786075795,4.21956949,133.85,133.81,14.3646496]
[1768786077016,11.69094878,133.85,133.81,14.3646496]
[1768786077314,4.21956949,133.84,133.8,14.36523949]
[1768786078696,4.21956949,133.84,133.79,14.36575089]
[1768786078911,4.21956949,133.84,133.79,14.96575094]
[1768786079414,4.21956949,133.83,133.79,8.0742792]
[1768786079611,4.21956949,133.83,133.79,14.36575089]
[1768786080626,4.21956949,133.83,133.79,7.47427915]
[1768786080787,4.21956949,133.81,133.76,7.49147179]
[1768786081093,4.21956949,133.81,133.78,7.47452171]
[1768786081294,4.21956949,133.81,133.77,7.47531039]
[1768786082708,4.21956949,133.81,133.77,14.36678213]
[1768786083517,4.21956949,133.79,133.75,23.83644775]
[1768786083719,4.1595695,133.79,133.76,14.36749349]
[1768786083926,33.0446478,133.83,133.77,6.89147174]
[1768786085020,26.15317606,133.83,133.77,14.36692172]
[1768786085213,33.0446478,133.83,133.77,14.36692172]
[1768786085605,4.21956949,133.82,133.77,15.02692176]
[1768786085809,4.21956949,133.85,133.81,6.89147174]
[1768786086798,4.21956949,133.84,133.81,6.89147174]
[1768786087003,4.21956949,133.84,133.81,6.89219692]
[1768786088118,11.69119007,133.84,133.8,14.36570628]
[1768786088309,4.21956949,133.83,133.8,14.36570628]
[1768786089019,11.69119007,133.84,133.81,3.00221234]
[1768786089321,4.21956949,133.84,133.81,3.00221234]
[1768786089529,4.21956949,133.85,133.82,3.00221234]
[1768786089736,4.21956949,133.85,133.8,8.1335094]
[1768786090027,4.21956949,133.84,133.81,3.00221234]
[1768786090200,4.21956949,133.84,133.8,8.1335094]
[1768786090407,4.21956949,133.84,133.81,3.00221234]
[1768786092706,4.21956949,133.84,133.8,10.4757217]
[1768786092910,11.69135934,133.84,133.8,10.4757217]
[1768786093115,4.21956949,133.84,133.8,10.4757217]
[1768786093513,11.69134117,133.84,133.8,3.00221234]
[1768786093712,7.47177168,133.84,133.8,3.00221234]
[1768786093907,4.21956949,133.83,133.79,10.47638347]
[1768786094107,4.21956949,133.83,133.79,3.00221234]
[1768786094304,4.21956949,133.82,133.77,11.13750777]
[1768786094504,3.00221234,133.82,133.76,19.36221234]
[1768786094708,3.00221234,133.82,133.76,3.00221234]
[1768786094922,3.00221234,133.81,133.75,27.55868835]
[1768786095632,7.36383502,133.8,133.75,3.00221234]
[1768786095807,7.30383503,133.8,133.75,10.47881178]
[1768786096432,4.21956949,133.79,133.75,10.47881178]
[1768786097134,4.21956949,133.79,133.75,11.19881181]
[1768786097339,4.21956949,133.79,133.76,3.00221234]
[1768786098014,4.21956949,133.78,133.74,23.83700015]
[1768786098225,4.21956949,133.78,133.74,11.19921252]
[1768786098426,4.21956949,133.78,133.74,3.72221237]
[1768786098612,4.21956949,133.78,133.74,11.19928827]
[1768786099709,4.21956949,133.78,133.74,11.19934476]
[1768786100110,4.21956949,133.77,133.73,11.1997863]
[1768786101932,4.21956949,133.77,133.74,10.47930339]
[1768786103034,4.36653769,133.78,133.74,11.19930342]
[1768786103233,4.36653769,133.78,133.75,3.00221234]
[1768786103632,4.3065377,133.78,133.74,8.19709108]
[1768786103837,4.3065377,133.78,133.75,3.00221234]
[1768786104332,4.3065377,133.78,133.75,10.4787111]
[1768786104831,4.3065377,133.78,133.75,7.47649876]
[1768786105032,4.3065377,133.78,133.75,10.4787111]
[1768786105239,4.3065377,133.78,133.75,7.47649876]
[1768786105741,11.7815597,133.78,133.74,11.25922564]
[1768786106118,4.36653769,133.77,133.74,7.47701328]
[1768786107346,4.36653769,133.77,133.74,10.47922562]
[1768786108350,4.36653769,133.78,133.74,11.25922564]
[1768786108519,4.36653769,133.78,133.74,10.47922562]
[1768786110119,4.3065377,133.78,133.74,10.47922562]
[1768786110362,4.3065377,133.78,133.75,10.47880091]
[1768786110529,4.3065377,133.78,133.75,11.31880092]
[1768786111539,7.47272455,133.82,133.77,3.84221235]
[1768786111938,7.47272455,133.82,133.77,3.00221234]
[1768786112136,4.36653769,133.81,133.77,3.00221234]
[1768786112537,11.83926224,133.82,133.78,3.84221235]
[1768786112845,4.36653769,133.82,133.78,3.84221235]
[1768786113441,4.36653769,133.82,133.77,11.31754104]
[1768786113628,4.36653769,133.81,133.77,11.31754104]
[1768786115441,4.36653769,133.81,133.77,8.3153287]
[1768786115645,4.36653769,133.81,133.77,11.31754104]
[1768786116147,4.36653769,133.8,133.77,7.47532869]
[1768786117225,4.36653769,133.81,133.77,8.3153287]
[1768786118951,4.36653769,133.81,133.77,11.31754104]
[1768786119152,7.47235199,133.83,133.79,0.84000001]
[1768786119153,11.89428554,133.83,133.79,0.84000001]
[1768786119324,45.9552711,133.86,133.82,3.84221235]
[1768786119325,4.42193355,133.86,133.82,3.84221235]
[1768786119651,4.42193355,133.86,133.83,3.00221234]
[1768786120441,4.42193355,133.87,133.83,3.84221235]
[1768786120639,4.42193355,133.87,133.81,16.36]
[1768786120842,4.42193355,133.81,133.77,10.47754103]
[1768786121044,4.42193355,133.81,133.77,7.47532869]
[1768786121247,4.42193355,133.81,133.77,10.47754103]
[1768786121439,4.42193355,133.8,133.76,8.31584783]
[1768786121647,4.42193355,133.8,133.76,11.31806017]
[1768786121844,4.42193355,133.8,133.76,3.84221235]
[1768786122041,4.42193355,133.8,133.76,3.00221234]
[1768786123255,4.42193355,133.8,133.76,10.47814535]
[1768786124449,4.42193355,133.8,133.76,11.31814536]
[1768786125139,4.42193355,133.8,133.76,8.31593302]
[1768786125362,4.42193355,133.8,133.76,11.31814536]
[1768786125856,4.42193355,133.79,133.76,10.47814535]
[1768786128054,4.42193355,133.81,133.77,3.84221235]
[1768786130066,4.42193355,133.81,133.77,11.31717593]
[1768786131767,4.42193355,133.81,133.76,27.00626794]
[1768786131952,4.42193355,133.81,133.77,3.00221234]
[1768786132553,4.42193355,133.81,133.77,3.84221235]
[1768786132970,4.42193355,133.81,133.77,11.31728561]
[1768786135062,11.62785677,133.83,133.79,0.84000001]
[1768786135241,3.00221234,133.84,133.79,0.84000001]
[1768786135242,4.15545887,133.84,133.79,0.84000001]
[1768786135448,4.15545887,133.83,133.79,3.84221235]
[1768786135643,4.15545887,133.83,133.8,3.00221234]
[1768786136648,4.15545887,133.83,133.79,3.00221234]
[1768786136854,4.15545887,133.83,133.78,26.83697028]
[1768786137054,4.15545887,133.82,133.78,26.83697028]
[1768786137374,4.15545887,133.82,133.78,27.67697029]
[1768786137560,4.15545887,133.82,133.79,3.00221234]
[1768786138567,4.15545887,133.82,133.78,24.67475795]
[1768786138767,4.15545887,133.82,133.79,3.00221234]
[1768786140766,4.15545887,133.82,133.79,10.47659336]
[1768786141481,4.15545887,133.82,133.79,3.00221234]
[1768786141777,4.15545887,133.82,133.78,19.36221234]
[1768786141778,4.15545887,133.81,133.78,19.36221234]
[1768786142075,4.15545887,133.81,133.78,3.00221234]
[1768786142669,4.15545887,133.81,133.77,3.00221234]
[1768786142875,4.15545887,133.8,133.77,3.00221234]
[1768786143970,4.15545887,133.8,133.77,10.47767689]
[1768786144162,4.09545888,133.8,133.77,10.47767689]
[1768786144568,4.09545888,133.8,133.76,11.31817083]
[1768786144768,4.09545888,133.8,133.76,10.47817082]
[1768786145269,4.09545888,133.8,133.76,11.37817082]
[1768786145677,7.47391321,133.8,133.76,10.47817082]
[1768786146073,11.62937208,133.8,133.76,10.47817082]
[1768786146253,4.15545887,133.79,133.76,10.47817082]
[1768786147972,4.15545887,133.78,133.75,7.47659871]
[1768786150860,4.09545888,133.77,133.72,24.60011709]
[1768786151066,4.09545888,133.77,133.73,3.96488946]
[1768786151579,3.00488947,133.77,133.72,3.96488946]
[1768786152277,10.47985308,133.78,133.72,3.96488946]
[1768786152570,10.47985308,133.78,133.73,7.47763763]
[1768786153073,4.15545887,133.76,133.72,7.4781034]
[1768786153264,4.15545887,133.76,133.72,10.48299287]
[1768786153465,4.15545887,133.76,133.72,11.44299286]
[1768786153775,4.09545888,133.76,133.72,11.44299286]
[1768786153981,7.47614056,133.76,133.72,10.48299287]